[Event "US Masters 2022"]
[Site "Charlotte"]
[Date "2022.11.25"]
[Round "3.24"]
[White "Mishra, Abhimanyu"]
[Black "Castro Torres, Jose Luis"]
[Result "1/2-1/2"]
[ECO "C07"]
[WhiteElo "2549"]
[BlackElo "2342"]
[Annotator "TA"]
[PlyCount "82"]
[EventDate "2022.11.23"]
[EventType "swiss"]
[EventCountry "USA"]
[SourceTitle "playchess.com"]
[Source "ChessBase"]
[SourceQuality "1"]
[TimeControl "5400+30"]

{[%evp 15,82,24,24,18,21,22,14,12,26,16,31,19,3,3,34,-1,-9,-35,53,47,49,40,56,52,78,12,33,7,14,17,51,0,69,25,25,20,133,133,137,141,121,61,59,31,151,89,156,124,160,81,109,99,68,0,0,-271,-285,-258,-208,-168,-70,-87,-91,-88,-69,-75,0,-76,0]} 1. e4 {[%emt 0:00:02]} e6 {[%emt 0:00:06]} 2. d4 {[%emt 0:00:05]} d5 {[%emt 0:00:19]} 3. Nd2 {[%emt 0:00:08]} c5 {[%emt 0:00:11]} 4. Ngf3 {[%emt 0:00:07]} cxd4 {[%emt 0:00:20]} 5. Nxd4 {[%emt 0:00:09]} Nc6 {[%emt 0:00:06]} 6. Bb5 {[%emt 0:00:11]} Bd7 {[%emt 0:00:20]} 7. Nxc6 {[%emt 0:00:25]} bxc6 {[%emt 0:00:12]} 8. Bd3 {[%emt 0:00:07][%cal Bb5d3,Bd3e4,Be4c2][%mdl 32]} Qc7 {[%emt 0:01:49]} 9. Qe2 {[%emt 0:03:52] C07: French Tarrasch: 3...c5, 4 Ngf3 and 4 exd5 Qxd5.} Ne7 {[%emt 0:00:07]} 10. O-O {[%emt 0:00:54]} Ng6 {[%emt 0:00:19]} 11. Nf3 {[%emt 0:00:47] The position is equal.} Be7 {[%emt 0:00:11]} 12. c4 {[%emt 0:01:44]} dxe4 {[%emt 0:05:10]} 13. Bxe4 {[%emt 0:00:25]} (13. Qxe4 f5 14. Qe2 e5 $11) 13... f5 {[%emt 0:00:12]} 14. Bc2 {[%emt 0:01:25]} O-O {[%emt 0:04:32]} 15. Ng5 {[%emt 0:14:08] [#]} Rf6 $146 {[%emt 0:17:40]} ({Predecessor:} 15... Bxg5 16. Bxg5 e5 17. Rad1 Rae8 18. h4 Rf7 19. h5 Nf8 20. Bd2 Ne6 21. Bc3 Nf4 {½-½ (30) Svanda,O (2361)-Budisavljevic,L (2516) Teplice 2022}) 16. h4 {[%emt 0:07:17][%cal Bh2h4,Bh4h5][%mdl 32]} Re8 {[%emt 0:28:52]} (16... Nxh4 $15 17. Qh5 h6 18. Qxh4 hxg5 19. Qxg5 (19. Bxg5 Rh6 $11) 19... c5) 17. h5 $14 {[%emt 0:08:46]} Nh8 {[%emt 0:03:17]} 18. Bd2 {[%emt 0:05:43]} Nf7 {[%emt 0:10:41]} 19. Rfe1 {[%emt 0:06:44]} Nh6 {[%emt 0:13:12]} 20. g3 {[%emt 0:07:35] White is more active.} (20. Qe5 $16 Bd6 21. Qa5) 20... Bc5 {[%emt 0:04:31]} (20... Ng4 {is more complex.} 21. b4 c5 22. Bf4 Qb7) 21. Be3 {[%emt 0:02:33]} Bxe3 {[%emt 0:02:18]} 22. Qxe3 {[%emt 0:00:04]} Ng4 {[%emt 0:00:18] Against Qe5} 23. Qe2 {[%emt 0:07:50]} (23. Qd2 $1 $14) 23... Rff8 {[%emt 0:04:09]} (23... c5 $11) 24. c5 {[%emt 0:06:04]} (24. Rad1 $5 {[%cal Rc4c5]}) 24... h6 {[%emt 0:01:42]} 25. Ne4 {[%emt 0:02:05]} Nxf2 {[%emt 0:01:10]} (25... Rb8 $11 {remains equal.}) 26. Nxf2 $16 {[%emt 0:02:16]} Qxg3+ {[%emt 0:00:05]} 27. Kf1 {[%emt 0:00:57] Hoping for Qd3.} Bc8 {[%emt 0:00:11]} 28. Rad1 {[%emt 0:03:36]} (28. Qe3 $16 Qh4 29. Qh3 Qc4+ 30. Qd3 Qxc5 31. Rac1) 28... e5 $1 $14 {[%emt 0:00:23]} 29. Rd3 {[%emt 0:07:10] Inhibits e4.} Qg5 {[%emt 0:00:30]} (29... Qh4 $1 $14 30. Rh3 Qg5) 30. Rd6 {[%emt 0:01:18]} (30. Re3 $142) 30... e4 {[%emt 0:00:14] [#]} (30... Kh8 $142) 31. Rg6 $1 $16 {[%emt 0:01:44]} (31. Rxc6 e3 32. Nh3 Qh4 $15) 31... Qh4 {[%emt 0:01:37] [#] And now ...e3 would win.} 32. Qc4+ {[%emt 0:01:25]} (32. Rxc6 e3 33. Rxc8 exf2 34. Rxe8 fxe1=Q+ 35. Qxe1 Qh1+ 36. Kf2 Qh2+ 37. Kf1 Qh1+ 38. Kf2 Qh2+ 39. Kf1 Qh1+ $11) (32. Qe3 $142 $1 {[%cal Re3h6]} Kh7 33. Rxc6) 32... Kh8 {[%emt 0:00:05]} 33. Qd4 {[%emt 0:03:03][%csl Gg6][%cal Rd4g7]} ({Much worse is} 33. Rxc6 Qxh5 34. Qc3 Qg5 $11) 33... Ba6+ {[%emt 0:00:33]} 34. Kg2 {[%emt 0:01:15]} ({Better is} 34. Kg1 $14 Rf6 35. Rg2 Qxh5 36. Re3 (36. Qd7 Rg8 $11)) 34... Rf6 $11 {[%emt 0:00:05]} 35. Qd7 $4 {[%emt 0:03:45][%mdl 8192]} (35. Rxf6 $11 {and White has nothing to worry.} gxf6 36. Bb3) 35... Rxg6+ $19 {[%emt 0:00:46]} 36. hxg6 {[%emt 0:00:02][%cal Rd7e8]} Qg5+ {[%emt 0:00:25]} 37. Kh2 {[%emt 0:01:01][%cal Rd7e8]} Qf4+ {[%emt 0:00:30]} (37... Rd8 $19 38. Qc7 f4 39. Rxe4 Bf1 40. Qxd8+ (40. Ng4 {is a self mate.} Rd2+) 40... Qxd8) 38. Kg1 $15 {[%emt 0:00:45][%cal Rd7e8]} Qg3+ {[%emt 0:00:26][%mdl 1024] Black has strong compensation.} 39. Kh1 {[%emt 0:00:01][%cal Rd7e8]} Qf3+ {[%emt 0:01:12]} 40. Kg1 {[%emt 0:00:02][%cal Rd7e8]} Qg3+ {[%emt 0:01:01]} (40... Rg8 $5 {[%cal Rf3g3]} 41. Qd2 Qg3+ 42. Kh1 Bc4 $15) 41. Kh1 {[%emt 0:00:06][%cal Rd7e8]} Qf3+ {[%emt 0:00:31] Weighted Error Value: White=0.31/Black=0.34} (41... Qxg6 $17 42. Qd6 Qh5+ 43. Qh2 Qxh2+ 44. Kxh2 g5) 1/2-1/2

[Event "US Masters 2022"]
[Site "Charlotte"]
[Date "2022.11.25"]
[Round "4.1"]
[White "Escalante Ramirez, Brian Sebasti"]
[Black "Naroditsky, Daniel"]
[Result "0-1"]
[ECO "B10"]
[WhiteElo "2468"]
[BlackElo "2617"]
[Annotator "TA"]
[PlyCount "80"]
[EventDate "2022.11.23"]
[EventType "swiss"]
[EventCountry "USA"]
[SourceTitle "playchess.com"]
[Source "ChessBase"]
[SourceQuality "1"]
[TimeControl "5400+30"]

{[%evp 9,80,-5,14,0,0,3,14,-4,15,-10,39,11,11,16,13,0,35,0,0,0,0,0,0,0,0,-45,-34,-71,-83,-104,-94,-198,-196,-209,-175,-321,-331,-300,-245,-516,-505,-505,-531,-518,-501,-634,-607,-855,-843,-792,-802,-828,-822,-1753,-1764,-3795,-3324,-2220,-2604,-29985,-29986,-29986,-29987,-29987,-29988,-29988,-29989,-29989,-29990,-29996,-29997,-29997,-236]} 1. e4 {[%emt 1:31:00]} c6 {[%emt 0:02:20]} 2. Nf3 {[%emt 0:00:00]} d5 {[%emt 0:00:12]} 3. exd5 {[%emt 0:00:00]} cxd5 {[%emt 0:00:07]} 4. Ne5 {[%emt 0:00:00]} Nc6 {[%emt 0:02:17]} 5. d4 {[%emt 0:00:00]} a6 {[%emt 0:02:28]} 6. c4 {[%emt 0:00:00] B10: Caro-Kann: 2 d3 and 2 c4.} e6 {[%emt 0:01:26]} 7. Nxc6 {[%emt 0:00:00]} bxc6 {[%emt 0:03:09] [#]} 8. Bd3 $146 {[%emt 0:00:00] The position is equal.} ({Predecessor:} 8. Nc3 Bd6 9. Bd3 Nf6 10. O-O O-O 11. Bg5 a5 12. Rc1 Ba6 13. cxd5 Bxd3 14. Qxd3 cxd5 {0-1 (32) Murzin,V (2519)-Svane,R (2637) Chess.com INT 2022}) 8... Bd6 {[%emt 0:07:53]} 9. O-O {[%emt 0:00:00]} Ne7 {[%emt 0:02:11]} (9... dxc4 $11 10. Bxc4 Nf6) 10. c5 {[%emt 0:00:00]} Bc7 {[%emt 0:00:28]} 11. Nd2 {[%emt 0:00:00]} O-O {[%emt 1:13:29]} 12. Nf3 {[%emt 0:00:00]} Ng6 {[%emt 0:00:00]} 13. Re1 {[%emt 0:00:00]} f6 {[%emt 0:00:00]} 14. Qc2 {[%emt 0:00:00]} Qe8 {[%emt 0:00:00]} 15. h4 {[%emt 0:00:00]} Kh8 {[%emt 0:00:00]} 16. Bd2 {[%emt 0:00:00]} Qf7 {[%emt 0:00:00]} 17. h5 {[%emt 0:00:00] Against e5} Ne7 {[%emt 0:00:00]} 18. h6 {[%emt 0:08:30]} (18. Bxh7 $2 {perishes.} Qxh5 19. Bd3 g5 $19) 18... g5 {[%emt 0:00:00] Black continues to play with concentration.} 19. g3 {[%emt 0:00:00]} Qh5 {[%emt 0:00:00][%csl LRf3,LRh6]} 20. Kg2 {[%emt 0:00:00] [#]} (20. Nh2 $17) 20... e5 $1 $19 {[%emt 0:00:00][%cal Be6e5,Be5e4][%mdl 32]} 21. Rh1 {[%emt 0:00:00] Prevents Bh3+.} (21. dxe5 $2 {too greedy.} Bh3+ 22. Kg1 Qxf3 $19) 21... Qf7 {[%emt 0:00:00] And now ...e4 would win.} 22. Ne1 {[%emt 0:00:00]} (22. Be2 {was worth a try.}) 22... e4 {[%emt 0:00:00]} ({Weaker is} 22... exd4 23. Nf3 $14) 23. Be2 {[%emt 0:00:00]} f5 {[%emt 0:00:00][%cal Bf6f5,Bf5f4,Bf4f3][%mdl 32] White must now prevent ...f4.} 24. Bxg5 {[%emt 0:00:00]} (24. f4) 24... f4 {[%emt 0:00:00]} 25. Bh5 {[%emt 0:00:00]} Ng6 {[%emt 0:00:00]} 26. g4 {[%emt 0:00:00]} f3+ {[%emt 0:00:00]} 27. Kf1 {[%emt 0:00:00]} a5 {[%emt 0:00:00]} 28. Qd2 {[%emt 0:00:56]} Ba6+ {[%emt 0:00:00]} 29. Kg1 {[%emt 0:00:02]} Qe6 {[%emt 0:00:00] ...Nf4 is the strong threat.} 30. Nc2 {[%emt 0:03:18]} Nf4 {[%emt 0:00:00] Hoping for ...Nxh5.} 31. Bxf4 {[%emt 0:00:10]} Rxf4 {[%emt 0:00:00]} 32. Ne3 {[%emt 0:00:22]} Rg8 {[%emt 0:00:00][%cal Rf4g4]} 33. Rh4 {[%emt 0:00:59]} Qxh6 {[%emt 0:00:00][%cal Of4g4] ( -> ...Rfxg4+!)} 34. Qc1 {[%emt 0:01:32] [#]} Rfxg4+ $3 {[%emt 0:00:00][%mdl 512] Black mates.} 35. Nxg4 {[%emt 0:00:28] [#]} Rxg4+ $1 {[%emt 0:00:00][%mdl 576]} 36. Rxg4 {[%emt 0:00:12]} Qxh5 {[%emt 0:00:00][%csl Gc7][%cal Rh5h2]} 37. Rg3 {[%emt 0:00:24]} Bxg3 {[%emt 0:00:00]} 38. fxg3 {[%emt 0:00:06]} f2+ {[%emt 0:00:00][%mdl 64] Deflection, Decoy} 39. Kxf2 {[%emt 0:01:14]} Qh2+ {[%emt 0:00:00][%mdl 64] Deflection} 40. Ke3 {[%emt 0:00:34]} Qxg3+ {[%emt 0:00:00] Weighted Error Value: White=0.96/Black=0.05 (flawless)} 0-1

[Event "US Masters 2022"]
[Site "Charlotte"]
[Date "2022.11.25"]
[Round "4.2"]
[White "Oparin, Grigoriy"]
[Black "Chandra, Akshat"]
[Result "1-0"]
[ECO "D41"]
[WhiteElo "2683"]
[BlackElo "2472"]
[Annotator "TA"]
[PlyCount "73"]
[EventDate "2022.11.23"]
[EventType "swiss"]
[EventCountry "USA"]
[SourceTitle "playchess.com"]
[Source "ChessBase"]
[SourceQuality "1"]
[TimeControl "5400+30"]

{[%evp 20,73,8,18,23,22,14,15,13,0,14,16,17,17,81,62,80,82,82,80,79,78,75,78,69,77,131,132,146,152,133,152,147,141,148,147,134,133,239,212,325,247,340,334,380,381,333,292,472,463,931,745,669,450,516,500]} 1. d4 {[%emt 0:00:02]} Nf6 {[%emt 0:08:31]} 2. c4 {[%emt 0:00:08]} e6 {[%emt 0:00:11]} 3. Nf3 {[%emt 0:00:06]} d5 {[%emt 0:00:40]} 4. Nc3 {[%emt 0:00:11]} c5 {[%emt 0:01:31]} 5. cxd5 {[%emt 0:00:22]} Nxd5 {[%emt 0:00:06]} 6. e4 {[%emt 0:00:09]} Nxc3 {[%emt 0:00:06]} 7. bxc3 {[%emt 0:00:04]} cxd4 {[%emt 0:00:06]} 8. cxd4 {[%emt 0:00:03]} Bb4+ {[%emt 0:00:05]} 9. Bd2 {[%emt 0:00:05]} Bxd2+ {[%emt 0:00:04]} 10. Qxd2 {[%emt 0:00:04]} O-O {[%emt 0:00:04]} 11. Rc1 {[%emt 0:00:52]} b6 {[%emt 0:02:29] D41: Queen's Gambit Declined: Semi-Tarrasch with 5 cxd5.} 12. Bd3 {[%emt 0:01:10]} Bb7 {[%emt 0:00:50]} 13. O-O {[%emt 0:00:13][%cal Bh1f1,Bf1c1,Bc1c7][%mdl 32]} Nd7 {[%emt 0:11:02] The position is equal.} 14. Qf4 {[%emt 0:00:41]} Rc8 {[%emt 0:02:55]} 15. Rxc8 {[%emt 0:01:07]} Qxc8 {[%emt 0:01:27]} 16. Rc1 {[%emt 0:00:22]} Qb8 {[%emt 0:02:19]} (16... Qd8 $11) 17. Qxb8 $1 $16 {[%emt 0:01:20]} Rxb8 {[%emt 0:00:19]} 18. Rc7 {[%emt 0:00:05]} Nf6 {[%emt 0:01:21] [#]} 19. Ng5 $1 $36 {[%emt 0:01:18][%mdl 2048] aiming for f3. White is on the roll.} h6 {[%emt 0:24:07]} 20. Nxf7 {[%emt 0:00:11]} Bxe4 {[%emt 0:00:20]} 21. Bxe4 {[%emt 0:00:42]} Nxe4 {[%emt 0:00:02][%mdl 4096] Endgame KRN-KRN} 22. f3 {[%emt 0:03:43]} Ng5 {[%emt 0:04:15] [#]} (22... Nf6 $142) 23. Ne5 $146 {[%emt 0:07:02]} ({Predecessor:} 23. Nxg5 hxg5 24. Rxa7 Rd8 25. Rb7 Rxd4 26. Rxb6 Rd1+ 27. Kf2 {½-½ (49) Sviridova,V (2144)-Margl,R (2293) Chess.com INT 2020}) 23... a5 {[%emt 0:07:57]} 24. Nc6 {[%emt 0:04:11]} Ra8 {[%emt 0:31:43]} 25. Rb7 {[%emt 0:00:12] Inhibits b5.} Nh7 {[%emt 0:00:00]} 26. Ne7+ {[%emt 1:19:07]} Kf8 {[%emt 0:00:00]} 27. Ng6+ {[%emt 0:00:00]} Kg8 {[%emt 0:00:00]} 28. Nf4 {[%emt 0:00:00] White is much more active.} Nf6 {[%emt 0:00:00]} (28... Nf8 $16 {was worth a try.}) 29. Nxe6 $18 {[%emt 0:01:30]} (29. Rxb6 $6 Nd5 30. Nxd5 (30. Rxe6 $2 Nxf4 31. Re4 Nd5 $19) 30... exd5) 29... Nd5 {[%emt 0:00:00]} (29... Re8 $142) 30. Rxg7+ {[%emt 0:00:00]} ({But not} 30. Nxg7 $6 Rf8 31. Ne6 Rf6 $18) 30... Kh8 {[%emt 0:00:00]} 31. Rd7 {[%emt 0:00:00] Inhibits a4.} Nc3 {[%emt 0:00:00]} 32. d5 {[%emt 0:00:00][%cal Bd4d5,Bd5d6][%mdl 32] d6 is the strong threat.} Re8 {[%emt 0:00:00] Inhibits d6.} 33. Nf4 {[%emt 0:00:00]} Nxa2 $2 {[%emt 0:00:00]} (33... Ne2+ 34. Nxe2 Rxe2) 34. d6 {[%emt 0:00:00] White is clearly winning.} ({Less strong is} 34. Rb7 Kg8 35. Rxb6 a4 $18) 34... Re1+ {[%emt 0:00:00]} (34... Kg8 $142 35. Nd5 b5) 35. Kf2 {[%emt 0:00:00]} Rd1 {[%emt 0:00:00]} 36. Ng6+ {[%emt 0:00:00]} Kg8 {[%emt 0:00:00]} 37. Ne5 {[%emt 0:00:00] Black did not feel at home in the position after the opening.   Weighted Error Value: White=0.14 (very precise) /Black=0.32} 1-0

[Event "US Masters 2022"]
[Site "Charlotte"]
[Date "2022.11.25"]
[Round "4.3"]
[White "Nagy, Gabor"]
[Black "Negi, Parimarjan"]
[Result "1/2-1/2"]
[ECO "D94"]
[WhiteElo "2482"]
[BlackElo "2639"]
[Annotator "TA"]
[PlyCount "112"]
[EventDate "2022.11.23"]
[EventType "swiss"]
[EventCountry "USA"]
[SourceTitle "playchess.com"]
[Source "ChessBase"]
[SourceQuality "1"]
[TimeControl "5400+30"]

{[%evp 15,112,40,40,26,18,-29,-18,-20,-29,-23,-18,-22,-20,-21,-17,-26,0,-12,-20,-21,-14,-43,-25,-41,0,-21,-9,-18,-45,-20,-12,-21,-13,-13,-13,-8,0,0,0,0,26,30,20,11,9,14,25,3,28,34,33,12,12,8,8,8,8,8,8,8,8,8,12,0,0,0,0,0,0,-8,0,-8,-8,-8,0,-18,0,0,0,0,8,8,8,0,4,0,0,0,0,0,0,0,0,0,0,0,0,-8,-8]} 1. d4 {[%emt 0:01:22]} d5 {[%emt 0:00:46]} 2. c4 {[%emt 0:00:23]} e6 {[%emt 0:00:21]} 3. Nf3 {[%emt 0:00:55]} Nf6 {[%emt 0:00:52]} 4. Nc3 {[%emt 0:00:29]} c6 {[%emt 0:01:56]} 5. e3 {[%emt 0:01:49]} Nbd7 {[%emt 0:00:55]} 6. Qc2 {[%emt 0:00:48]} g6 {[%emt 0:02:39]} 7. Be2 {[%emt 0:03:14]} Bg7 {[%emt 0:00:27]} 8. O-O {[%emt 0:01:38]} O-O {[%emt 0:00:06]} 9. Rd1 $1 {[%emt 0:03:15] 9.Rd1 scores better than 9.b3. D94: Grünfeld: 4 Nf3 Bg7 5 e3.} Re8 {[%emt 0:01:32] [#]} 10. Ne5 $146 {[%emt 0:08:08]} (10. a4 $142) ({Predecessor:} 10. b3 b6 11. cxd5 exd5 12. Ba3 Bb7 13. Rac1 Rc8 14. Bf1 c5 15. Qb1 Ne4 16. Bb2 Qe7 17. dxc5 Nxf2 {½-½ (94) Carlsen,M (2862)-Artemiev,V (2708) Chess.com INT 2020}) 10... Nxe5 $11 {[%emt 0:13:28]} 11. dxe5 {[%emt 0:00:18]} Nd7 {[%emt 0:00:02]} 12. f4 {[%emt 0:00:26]} f6 {[%emt 0:01:18][%cal Bf7f6,Bf6e5][%mdl 32]} 13. e4 {[%emt 0:04:31]} fxe5 {[%emt 0:08:59] ...d4 is the strong threat.} 14. exd5 {[%emt 0:00:57]} exd5 {[%emt 0:00:28]} 15. cxd5 {[%emt 0:00:13]} Nf6 {[%emt 0:12:26]} 16. dxc6 {[%emt 0:02:53]} Qb6+ {[%emt 0:00:39]} 17. Kh1 {[%emt 0:00:13]} bxc6 {[%emt 0:04:13]} 18. fxe5 {[%emt 0:00:39]} Ng4 {[%emt 0:06:44]} ({Don't play} 18... Rxe5 19. Na4 Qb7 20. Rd8+ Bf8 21. Bf4 $14) (18... Bf5 $5 {[%cal Rf5c2]} 19. Qb3+ (19. Bc4+ Kh8 $11) 19... Qxb3 20. axb3 Ng4 $15) 19. Rf1 {[%emt 0:04:18]} Nxe5 {[%emt 0:02:01]} (19... Nf2+ $2 {[#]} 20. Rxf2 $1 {[%mdl 512]} Rxe5 21. Bf4 $1 $18) (19... Bf5 {simplifies} 20. Na4 Bxc2 21. Nxb6 axb6 22. Bxg4 Rxe5 23. Bd2 Bd3) 20. Na4 {[%emt 0:06:48]} Qd4 {[%emt 0:14:31]} 21. Bf4 {[%emt 0:03:04]} Bf5 {[%emt 0:00:29]} 22. Qb3+ {[%emt 0:01:27]} Qd5 {[%emt 0:01:17]} 23. Nc5 {[%emt 0:04:48] Against Nd3} Rab8 {[%emt 0:03:57]} 24. Qxd5+ {[%emt 0:04:10]} cxd5 {[%emt 0:00:06]} 25. b3 {[%emt 0:00:16]} Rbc8 {[%emt 0:09:21]} 26. Bb5 $1 {[%emt 0:07:04]} Re7 {[%emt 0:00:23]} 27. Rac1 {[%emt 0:00:11]} d4 {[%emt 0:06:14]} 28. h3 {[%emt 0:00:49]} h5 {[%emt 0:05:39] Against g4} 29. Rfd1 {[%emt 0:03:16]} (29. Rfe1 {looks sharper.} Kf7 30. Ba6 Rf8 31. a4) 29... Nf7 {[%emt 0:00:22]} 30. b4 {[%emt 0:00:55]} g5 {[%emt 0:01:15]} 31. Bg3 {[%emt 0:00:31]} g4 {[%emt 0:01:20]} 32. hxg4 {[%emt 0:01:11]} Bxg4 {[%emt 0:00:10]} 33. Re1 {[%emt 0:00:12]} Re3 {[%emt 0:01:01] The position is equal.} 34. Bf4 {[%emt 0:01:15]} Rxe1+ {[%emt 0:00:54]} 35. Rxe1 {[%emt 0:00:03]} Bf8 {[%emt 0:00:25] Against Re7} 36. Rc1 {[%emt 0:03:45]} Bd6 {[%emt 0:00:26]} 37. Bxd6 {[%emt 0:02:31]} Nxd6 {[%emt 0:00:01]} 38. Bd3 {[%emt 0:00:16]} Bf5 {[%emt 0:01:10]} 39. Rd1 {[%emt 0:03:44]} Bxd3 {[%emt 0:00:04]} 40. Rxd3 {[%emt 0:00:11][%mdl 4096] Endgame KRN-KRN} Nf5 {[%emt 0:00:02]} 41. a3 {[%emt 0:03:20]} Kg7 {[%emt 0:01:18]} 42. Rf3 {[%emt 0:01:08]} Kg6 {[%emt 0:00:30]} 43. Kg1 {[%emt 0:01:40]} Re8 {[%emt 0:00:30]} 44. Kf2 {[%emt 0:00:14]} Ne3 {[%emt 0:00:16]} 45. Nd3 {[%emt 0:01:41]} Kg5 {[%emt 0:00:44]} 46. Rf4 {[%emt 0:01:29]} Nc2 {[%emt 0:00:37]} 47. a4 {[%emt 0:03:17]} Rc8 {[%emt 0:00:28]} 48. Rf7 {[%emt 0:01:32]} a6 {[%emt 0:00:02]} 49. Rd7 {[%emt 0:01:02]} Rc3 {[%emt 0:00:55]} 50. Ke2 {[%emt 0:00:07]} Rb3 {[%emt 0:00:27]} 51. b5 {[%emt 0:01:12]} axb5 {[%emt 0:00:11]} 52. Rd5+ {[%emt 0:00:14]} Kg4 {[%emt 0:01:02]} 53. Rxb5 {[%emt 0:00:44]} Ra3 {[%emt 0:00:05]} 54. a5 {[%emt 0:00:19]} Ne3 {[%emt 0:00:20]} 55. Nf2+ {[%emt 0:02:46]} Kh4 {[%emt 0:00:05]} 56. g3+ {[%emt 0:03:30]} Kxg3 {[%emt 0:00:04] Weighted Error Value: White=0.06 (flawless) /Black=0.05 (flawless)} 1/2-1/2

[Event "US Masters 2022"]
[Site "Charlotte"]
[Date "2022.11.25"]
[Round "4.4"]
[White "Burke, John M"]
[Black "Macovei, Andrei"]
[Result "1/2-1/2"]
[ECO "C65"]
[WhiteElo "2580"]
[BlackElo "2482"]
[Annotator "TA"]
[PlyCount "84"]
[EventDate "2022.11.23"]
[EventType "swiss"]
[EventCountry "USA"]
[SourceTitle "playchess.com"]
[Source "ChessBase"]
[SourceQuality "1"]
[TimeControl "5400+30"]

{[%evp 9,84,3,8,8,7,0,15,4,0,4,4,12,15,10,3,11,7,6,5,0,0,0,0,0,0,0,0,0,0,0,0,0,0,3,29,27,66,67,70,85,64,67,67,86,88,0,14,10,11,13,14,0,201,195,182,61,46,29,28,26,29,9,9,9,9,9,9,9,28,28,28,8,8,8,8,8,8]} 1. e4 {[%emt 0:00:09]} e5 {[%emt 0:08:18]} 2. Nf3 {[%emt 0:00:11]} Nc6 {[%emt 0:00:05]} 3. Bb5 {[%emt 0:00:28]} Nf6 {[%emt 0:00:04]} 4. d3 {[%emt 0:00:51]} Bc5 {[%emt 0:00:04]} 5. c3 {[%emt 0:00:31]} d5 {[%emt 0:00:11]} 6. exd5 {[%emt 0:00:57] C65: Ruy Lopez: Berlin Defence (3...Nf6), unusual lines and 4 0-0 Bc5.} Qxd5 {[%emt 0:00:02][%cal Oc5f2]} 7. Bc4 {[%emt 0:00:06]} Qd6 {[%emt 0:00:03]} 8. Nbd2 $1 {[%emt 0:01:38][%mdl 4] Inhibits e4. outshines the older 8.b4.} Bf5 {[%emt 0:00:17]} 9. b4 {[%emt 0:06:29]} Bb6 {[%emt 0:03:00]} 10. Ng5 {[%emt 0:00:19]} O-O {[%emt 0:00:27]} 11. Nde4 {[%emt 0:00:06]} Nxe4 {[%emt 0:00:06]} 12. dxe4 {[%emt 0:00:05]} Qxd1+ {[%emt 0:00:02]} 13. Kxd1 {[%emt 0:00:06]} Bg4+ {[%emt 0:00:02]} 14. Kc2 {[%emt 0:00:49]} h6 {[%emt 0:02:47] Prevents f3.} ({Don't take} 14... Bxf2 15. Rf1 Be6 16. Nxe6 fxe6 17. Bxe6+ Kh8 18. Bd5 $16) 15. Nf3 {[%emt 0:00:07][%cal Bg5f3,Bf3h4,Bh4f5][%mdl 32]} Bxf2 {[%emt 0:02:52]} 16. Rf1 {[%emt 0:00:05]} Bb6 {[%emt 0:00:04]} 17. a4 {[%emt 0:03:14]} a6 {[%emt 0:00:14]} 18. Ba3 {[%emt 0:03:11]} Rfe8 {[%emt 0:10:19] [#]} 19. Nh4 $146 {[%emt 0:02:54]} ({Predecessor:} 19. Rad1 Be6 20. Bxe6 Rxe6 21. a5 Be3 22. Rd7 Rc8 23. Nh4 Nb8 24. Rd3 Bg5 25. Nf5 {1-0 (68) Grandelius,N (2651)-Duda,J (2731) chess24.com INT 2022}) 19... Be6 {[%emt 0:01:21] Inhibits a5.} 20. Bxe6 {[%emt 0:00:07]} Rxe6 {[%emt 0:00:50]} 21. Rad1 {[%emt 0:01:27]} Rc8 {[%emt 0:18:08]} 22. Nf5 {[%emt 0:24:01]} Ne7 {[%emt 0:08:12]} 23. a5 {[%emt 0:07:32] [#] Hoping for Nxe7+.} Ba7 {[%emt 0:00:07]} 24. Nxe7+ {[%emt 0:03:20]} Rxe7 {[%emt 0:00:13]} 25. b5 $1 {[%emt 0:00:03] Inhibits b5.} Re6 {[%emt 0:09:53]} 26. Rd7 $36 {[%emt 0:00:25][%mdl 3072] aiming for b6. White has compensation. White is on the roll.} f6 {[%emt 0:00:05]} 27. c4 {[%emt 0:10:10] White has more active pieces. The black rooks are badly placed.} (27. Rf3 $16) 27... Bd4 {[%emt 0:07:05]} 28. Rf3 {[%emt 0:35:09] [#] Threatens to win with Rg3.} Ra8 $1 {[%emt 0:12:48]} 29. Rg3 {[%emt 0:00:00]} g5 {[%emt 0:00:14]} 30. Rh3 {[%emt 0:00:00]} f5 $2 {[%emt 0:00:31]} (30... axb5 $11 31. Rxh6 Rxa5) 31. exf5 $18 {[%emt 0:00:00]} Rf6 {[%emt 0:00:06]} 32. Rxc7 {[%emt 0:00:00]} ({White has to play} 32. Bb4 $18) 32... axb5 $14 {[%emt 0:18:00]} 33. cxb5 {[%emt 0:00:00] Strongly threatening Bb4.} (33. Bb4 $5 {[%cal Rc4b5]} bxc4 34. g4 $11 (34. Rxc4 b6 $11) (34. Rxb7 Rxf5 35. Rf3 Rxf3 $11)) 33... Rxa5 {[%emt 0:00:00]} 34. Rxb7 {[%emt 0:00:00]} Rxf5 {[%emt 0:00:00]} 35. Kb3 {[%emt 0:00:00] And now Bb4 would win.} e4 $1 {[%emt 0:00:00]} 36. Rxh6 {[%emt 0:00:00] Black must now prevent Rg6+.} Rfxb5+ {[%emt 0:00:00]} 37. Rxb5 {[%emt 0:00:00]} Rxb5+ $11 {[%emt 0:00:00] KRB-KRB} 38. Kc4 {[%emt 0:00:00]} Rb6 {[%emt 0:00:00]} 39. Rxb6 {[%emt 0:00:00]} Bxb6 {[%emt 0:00:00]} 40. Kd5 {[%emt 0:00:00]} e3 {[%emt 0:00:00] The position is equal.} 41. Bb4 {[%emt 0:00:00]} e2 {[%emt 0:00:00]} 42. Be1 {[%emt 0:00:00]} g4 $1 {[%emt 0:00:00] Weighted Error Value: White=0.09 (flawless) /Black=0.11 (very precise)} 1/2-1/2